bitfinex-derivatives/quotes_ETHF0:USTF0_20220108
["timestamp","ask_amount","ask_price","bid_price","bid_amount"]
[1641680808449,2.00479,3116.9,3116.2,2.00479]
[1641680808851,0.96260764,3116.6,3116.2,2.00479]
[1641680809451,0.96266532,3116.4,3116.2,2.00479]
[1641680810852,1.47476143,3116.8,3116.2,1.04206932]
[1641680811557,3.07930807,3116.8,3116.2,1.04206932]
[1641680811951,1.15510294,3116.7,3116.2,1.04206932]
[1641680812152,6.28906694,3116.7,3116.2,1.04206932]
[1641680813052,6.28906694,3116.7,3116.2,1.68285632]
[1641680813453,6.28906694,3116.7,3116.2,1.04206932]
[1641680816558,1.60454664,3116.8,3116.3,1.302757]
[1641680818160,2.00479,3116.9,3116.3,1.302757]
[1641680819167,2.00479,3117.2,3116.4,14.05]
[1641680819364,8.40345951,3118.0,3117.1,4.00958]
[1641680819365,5.414,3118.0,3117.1,4.00958]
[1641680819564,2.00479,3118.4,3117.1,4.62158]
[1641680819764,1.60378236,3118.3,3117.1,4.62158]
[1641680820764,1.60378236,3118.3,3117.2,14.05]
[1641680821474,1.60378236,3118.3,3117.6,2.00479]
[1641680821669,1.60378236,3118.3,3117.6,2.645577]
[1641680822268,1.60378236,3118.3,3117.7,0.66197]
[1641680823768,2.00479,3118.4,3117.7,0.66197]
[1641680833680,1.79203448,3118.6,3117.7,0.66197]
[1641680835579,0.4807,3118.6,3118.0,2.00479]
[1641680835779,2.00479,3118.8,3118.1,0.66197]
[1641680835980,2.00479,3118.8,3118.1,1.39697]
[1641680841988,2.00479,3118.8,3118.1,15.44697]
[1641680842189,2.00479,3118.8,3118.2,1.5]
[1641680842388,2.00479,3118.8,3118.3,1.302757]
[1641680842589,2.00479,3118.8,3118.3,15.352757]
[1641680843597,2.00479,3119.1,3118.3,1.302757]
[1641680844598,1.59574231,3119.5,3118.3,1.302757]
[1641680844800,1.59574231,3119.5,3118.3,15.352757]
[1641680845401,1.59574231,3119.5,3119.3,2.00479]
[1641680848705,0.96163719,3119.7,3119.4,0.66197]
[1641680849106,0.96163719,3119.7,3119.3,2.89819]
[1641680851608,5.58528919,3119.7,3119.3,2.89819]
[1641680853809,4.623652,3119.7,3119.3,2.89819]
[1641680855212,4.623652,3119.7,3119.3,3.56016]
[1641680855615,4.623652,3119.7,3119.3,3.26446]
[1641680855814,4.623652,3119.7,3119.3,2.60249]
[1641680860821,1.76274616,3119.2,3119.0,2.00479]
[1641680861218,0.006737,3119.1,3119.0,2.00479]
[1641680862020,1.43147129,3119.1,3119.0,2.00479]
[1641680867323,2.00479,3119.4,3119.0,2.65619]
[1641680868926,1.08703839,3119.5,3119.0,3.31816]
[1641680869328,0.96168241,3119.6,3119.0,3.31816]
[1641680871027,0.96178812,3119.2,3119.0,2.65619]
[1641680871228,0.96178812,3119.2,3119.0,2.00479]
[1641680872628,1.40235065,3119.5,3119.0,2.00479]
[1641680872827,0.96164096,3119.7,3119.0,2.00479]
[1641680873228,0.96164096,3119.7,3119.1,0.66197]
[1641680875436,2.85242725,3120.0,3119.1,0.66197]
[1641680880235,2.00479,3120.0,3119.1,0.66197]
[1641680881337,0.80884842,3119.9,3119.1,0.66197]
[1641680881533,1.55244842,3119.9,3119.1,0.66197]
[1641680884638,0.96160784,3119.8,3119.1,0.66197]
[1641680885437,0.96160784,3119.8,3119.0,2.00479]
[1641680885637,0.96163021,3119.8,3119.0,2.00479]
[1641680885940,5.129191,3119.7,3119.0,2.00479]
[1641680886340,0.96173532,3119.4,3119.0,2.00479]
[1641680886940,0.8123,3120.1,3119.2,1.60239719]
[1641680887139,1.60245881,3120.9,3119.3,15.27]
[1641680887341,2.03236956,3120.6,3119.5,1.5]
[1641680887542,2.03236956,3120.6,3120.0,2.00479]
[1641680887742,2.03236956,3120.6,3120.0,2.91749]
[1641680887940,2.03236956,3120.6,3120.1,0.66197]
[1641680889241,4.31185223,3120.9,3120.1,0.66197]
[1641680889442,1.60245881,3120.9,3120.1,0.66197]
[1641680890243,1.60254099,3120.7,3120.1,0.66197]
[1641680890447,1.60252558,3120.7,3120.2,0.66197]
[1641680890650,5.127547,3120.6,3120.3,0.640787]
[1641680890845,5.127547,3120.6,3120.0,2.00479]
[1641680891145,5.127547,3120.6,3120.1,0.66197]
[1641680891552,0.6034,3121.4,3120.5,2.00479]
[1641680891747,2.00479,3121.3,3120.5,2.00479]
[1641680892446,5.126726,3121.2,3120.5,2.00479]
[1641680892645,5.126726,3121.2,3120.6,0.640787]
[1641680893545,5.126726,3121.2,3120.5,2.00479]
[1641680894744,5.126726,3121.2,3120.6,0.640787]
[1641680894945,5.126726,3121.2,3120.5,2.00479]
[1641680895346,1.60245881,3120.9,3120.5,2.00479]
[1641680895747,5.127054,3120.8,3120.5,2.00479]
[1641680896551,3.54233155,3121.3,3120.6,0.66197]
[1641680896748,3.54233155,3121.3,3120.7,0.640787]
[1641680896950,3.54233155,3121.3,3120.8,0.66197]
[1641680898362,3.54233155,3121.3,3120.5,2.00479]
[1641680898751,3.54233155,3121.3,3120.6,1.302757]
[1641680899351,5.14455672,3121.3,3120.6,1.302757]
[1641680899952,3.13976672,3121.3,3120.6,1.302757]
[1641680900351,1.53754155,3121.3,3120.5,2.00479]
[1641680900551,0.96121312,3121.1,3120.5,2.00479]
[1641680900751,1.60238178,3121.0,3120.5,2.00479]
[1641680900951,1.60238178,3121.0,3120.5,2.645577]
[1641680900952,2.56363255,3121.0,3120.5,2.645577]
[1641680901251,2.56363255,3121.0,3120.5,2.00479]
[1641680905054,2.56363255,3121.0,3120.5,2.645577]
[1641680905454,0.96125077,3121.0,3120.5,3.307547]
[1641680905654,0.96125077,3121.0,3120.9,2.00479]
[1641680907155,2.56363512,3121.0,3120.9,2.00479]
[1641680909658,0.96125077,3121.0,3120.9,2.00479]
[1641680910058,2.56366079,3121.0,3120.9,2.00479]
[1641680910561,2.56366079,3121.0,3120.9,1.04349047]
[1641680910960,0.96125077,3121.0,3120.9,1.04349047]
[1641680913061,1.32717991,3121.4,3120.9,1.04349047]
[1641680913262,1.60227908,3121.2,3120.9,1.04349047]
[1641680913660,1.32717991,3121.4,3120.9,1.04349047]
[1641680913861,1.60230989,3121.2,3120.9,1.04349047]
[1641680914067,1.32717991,3121.4,3120.9,1.04349047]
[1641680914663,2.7554263,3121.5,3120.9,1.04349047]
[1641680915063,2.7554263,3121.5,3121.0,0.66197]
[1641680915264,1.15329354,3121.5,3121.0,0.66197]
[1641680915863,1.15329354,3121.5,3121.3,2.00479]
[1641680916966,1.15330508,3121.5,3121.3,2.00479]
[1641680918564,2.75545067,3121.5,3121.3,2.00479]
[1641680918766,1.5510696,3121.4,3121.3,2.00479]
[1641680918968,3.15335895,3121.4,3121.3,2.00479]
[1641680919169,1.5510696,3121.4,3121.3,2.00479]
[1641680924575,5.68466509,3121.2,3120.9,1.04349047]
[1641680924778,1.5510696,3121.4,3120.9,1.04349047]
[1641680925579,1.5510696,3121.4,3120.9,1.70546047]
[1641680926380,1.5510696,3121.4,3121.0,0.640787]
[1641680926679,1.5510696,3121.4,3121.1,0.66197]
[1641680928580,0.4909,3121.6,3121.1,0.66197]
[1641680935488,1.02178843,3121.8,3121.1,0.66197]
[1641680938491,1.19830176,3121.9,3121.1,0.66197]
[1641680938791,2.00479,3122.0,3121.2,1.5]
[1641680938991,2.00479,3122.0,3121.3,0.66197]
[1641680939791,2.00479,3122.0,3121.5,2.00479]
[1641680939993,2.00479,3122.0,3121.6,0.66197]
[1641680940192,2.00479,3122.0,3121.6,1.302757]
[1641680940595,0.4891,3122.2,3121.6,1.302757]
[1641680941593,1.58020736,3122.3,3121.6,1.302757]
[1641680941793,1.58020736,3122.3,3121.9,2.00479]
[1641680941993,1.58020736,3122.3,3122.0,0.66197]
[1641680945196,2.00479,3122.6,3122.0,0.66197]
[1641680945396,1.13211496,3122.5,3122.0,0.66197]
[1641680947199,3.60622745,3122.9,3122.0,14.43197]
[1641680947602,2.00479,3122.9,3122.0,0.66197]
[1641680947800,2.00479,3122.9,3122.5,2.00479]
[1641680948000,2.00479,3122.9,3122.6,1.302757]
[1641680948402,0.94778781,3122.8,3122.6,1.302757]
[1641680950104,65.25841367,3823.5,3122.6,1.302757]
[1641680950105,1.60131436,3123.1,3122.6,1.302757]
[1641680950705,2.47509,3123.6,3122.6,1.302757]
[1641680952309,1.29010025,3123.5,3122.6,1.302757]
[1641680954009,1.29010025,3123.5,3123.1,2.00479]
[1641680954207,1.29010025,3123.5,3123.2,0.66197]
[1641680954411,1.29010025,3123.5,3123.2,1.302757]
[1641680966821,2.25057037,3123.5,3123.3,0.661969]
[1641680967925,2.25057037,3123.5,3123.2,5.7e-05]
[1641680968121,1.29010025,3123.5,3123.2,5.7e-05]
[1641680968521,1.29010025,3123.5,3123.3,0.661969]
[1641680969622,2.47509,3123.6,3123.3,0.661969]
[1641680971226,2.00479,3123.6,3123.3,0.661969]
[1641680974730,2.00479,3123.9,3123.3,0.661969]
[1641680974930,2.48979,3123.9,3123.3,0.661969]
[1641680978030,2.48979,3123.9,3123.5,2.00479]
[1641680978232,2.48979,3123.9,3123.6,0.661969]
[1641680979231,0.485,3123.9,3123.6,0.661969]
[1641680980333,1.51438733,3124.0,3123.6,0.661969]
[1641680981336,1.99328733,3124.0,3123.6,0.661969]
[1641680981535,0.4789,3124.0,3123.6,0.661969]
[1641680983741,1.41341907,3124.2,3123.6,0.661969]
[1641680984143,1.41341907,3124.2,3123.6,14.431969]
[1641680984542,1.41341907,3124.2,3123.6,15.931969]
[1641680984743,1.41341907,3124.2,3123.6,14.431969]
[1641680986045,1.41341907,3124.2,3124.1,2.00479]
[1641680986245,1.41341907,3124.2,3124.1,2.666759]
[1641680987947,0.95573626,3124.3,3124.1,2.666759]
[1641680992258,0.95573626,3124.3,3124.1,0.661969]
[1641681000873,2.00479,3124.6,3124.1,0.661969]
[1641681004078,2.00479,3124.6,3124.1,2.161969]
[1641681004680,2.00479,3124.6,3124.1,0.661969]
[1641681005086,2.00479,3124.6,3124.1,2.161969]
[1641681005484,2.00479,3124.6,3124.1,0.661969]
[1641681010191,2.00479,3124.6,3124.1,2.666759]
[1641681011094,0.96016233,3124.5,3124.1,2.666759]
[1641681013293,1.15041107,3124.7,3124.1,2.666759]
[1641681013696,1.62209519,3124.6,3124.1,2.00479]
[1641681014395,0.96012519,3124.6,3124.1,2.00479]
[1641681014694,0.66197,3124.6,3124.1,2.00479]
[1641681014894,0.66197,3124.6,3124.1,2.666759]
[1641681015297,3.15520107,3124.7,3124.1,2.666759]
[1641681015695,3.81717107,3124.7,3124.1,2.666759]
[1641681016696,0.64073,3124.6,3124.1,2.666759]
[1641681016895,1.3027,3124.6,3124.1,2.666759]
[1641681017097,1.3027,3124.6,3124.1,2.00479]
[1641681017496,1.3027,3124.6,3124.1,2.666759]
[1641681018097,0.66197,3124.6,3124.1,2.666759]
[1641681018797,1.3027,3124.6,3124.1,2.666759]
[1641681019698,3.15520107,3124.7,3124.1,2.666759]
[1641681020300,0.96012853,3124.6,3124.1,2.666759]
[1641681021100,0.66197,3124.5,3124.1,2.666759]
[1641681021300,0.96012853,3124.6,3124.1,2.666759]
[1641681021701,1.62209853,3124.6,3124.1,4.166759]
[1641681022705,1.62209853,3124.6,3124.1,2.00479]
[1641681022904,1.62209853,3124.6,3124.1,4.166759]
[1641681023309,1.62209853,3124.6,3124.1,2.666759]
[1641681023606,2.26282853,3124.6,3124.1,4.166759]
[1641681025209,1.62209853,3124.6,3124.1,4.166759]
[1641681025407,1.62209853,3124.6,3124.1,2.666759]
[1641681025608,1.62209853,3124.6,3124.1,4.166759]
[1641681025808,1.18661306,3124.4,3124.1,4.166759]
[1641681028608,3.42254519,3124.5,3124.1,4.166759]
[1641681028808,3.42254519,3124.5,3124.1,3.50479]
[1641681029910,3.42254519,3124.5,3124.2,0.661969]
[1641681030610,3.42254519,3124.5,3124.1,2.00479]
[1641681030810,0.64073,3124.5,3124.1,3.307546]
[1641681031812,0.66197,3124.6,3124.1,3.307546]
[1641681032011,1.3027,3124.6,3124.1,3.307546]
[1641681032212,1.3027,3124.6,3124.1,2.666759]
[1641681032612,1.3027,3124.6,3124.1,2.00479]
[1641681032810,1.3027,3124.6,3124.1,2.666759]
[1641681033011,1.3027,3124.6,3124.1,3.307546]
[1641681033412,0.66197,3124.6,3124.1,3.307546]
[1641681033613,3.15520107,3124.7,3124.1,3.307546]
[1641681034317,0.64073,3124.6,3124.1,3.307546]
[1641681034716,1.3027,3124.6,3124.1,3.307546]
[1641681034913,3.15520107,3124.7,3124.1,3.307546]
[1641681036414,3.15520107,3124.7,3124.2,0.51088554]
[1641681036615,3.15520107,3124.7,3124.3,0.661969]
[1641681042719,0.66197,3124.6,3124.1,2.00479]
[1641681044727,0.66197,3124.6,3124.2,0.51089533]
[1641681047535,0.66197,3124.6,3124.1,1.04379]
[1641681047734,0.66197,3124.6,3124.1,0.08350543]
[1641681048134,5.121065,3124.5,3124.1,0.08350543]
[1641681048333,0.66197,3124.4,3124.1,0.08350543]
[1641681048734,1.27834092,3124.3,3124.1,0.08350543]
[1641681048935,0.66197,3124.2,3124.1,0.08350543]
[1641681050137,0.66197,3124.2,3123.5,2.68598708]
[1641681050336,1.79306502,3124.1,3123.7,1.27179472]
[1641681050535,0.66197,3124.0,3123.7,1.27179472]
[1641681051537,0.66197,3124.0,3123.5,5.54516832]
[1641681051938,0.66197,3124.0,3123.5,4.00958]
[1641681053438,0.96036607,3123.9,3123.5,4.00958]
[1641681053640,0.66197,3123.8,3123.5,3.04906574]
[1641681054040,1.60085806,3123.7,3123.5,3.04906574]
[1641681054240,0.66197,3123.6,3123.5,3.04906574]
[1641681054441,0.66197,3123.6,3123.5,2.00479]
[1641681054640,1.23094618,3123.5,3123.1,1.53558832]
[1641681054840,0.66197,3123.4,3123.1,1.53558832]
[1641681055042,1.3027,3123.4,3123.1,1.53558832]
[1641681056044,1.3027,3123.4,3122.9,1.53558832]
[1641681056240,2.90372722,3123.4,3122.9,1.53558832]
[1641681056541,2.90372722,3123.4,3123.1,2.00479]
[1641681057542,2.90372722,3123.4,3122.9,1.53558832]
[1641681057942,2.90372722,3123.4,3122.8,2.00479]
[1641681057943,1.60119641,3123.1,3122.8,2.00479]
[1641681058143,2.24227318,3123.0,3122.8,2.00479]
[1641681058343,2.24227318,3123.0,3122.5,2.00479]
[1641681058545,1.15282654,3122.8,3122.2,2.6470671]
[1641681058744,1.3027,3122.7,3122.2,2.6470671]
[1641681059144,1.60143232,3122.6,3122.2,2.6470671]
[1641681059343,1.60143232,3122.6,3121.8,6.28678437]
[1641681059344,0.66197,3122.5,3121.8,6.28678437]
[1641681059543,0.66197,3122.5,3121.8,2.6470671]
[1641681060342,0.66197,3122.5,3121.9,2.00479]
[1641681060544,2.263469,3122.5,3121.9,2.00479]
[1641681060944,2.263469,3122.5,3122.0,1.26917262]
[1641681061143,2.64552,3122.7,3122.0,1.26917262]
[1641681062348,4.24699079,3122.7,3121.9,2.00479]
[1641681063850,2.64552,3122.7,3121.9,2.00479]
[1641681064049,0.96082875,3122.4,3121.9,2.00479]
[1641681064649,1.44097321,3122.3,3121.9,2.00479]
[1641681069055,0.96089546,3122.1,3121.9,2.00479]
[1641681071958,0.64073,3122.2,3121.9,0.41630125]
[1641681072357,0.08007,3122.6,3121.9,0.41630125]
[1641681072557,2.00479,3122.7,3121.9,0.41630125]
[1641681073360,0.64073,3122.6,3121.9,0.41630125]
[1641681074560,0.64073,3122.6,3122.0,0.66197]
[1641681074760,0.64073,3122.6,3121.9,0.41630125]
[1641681077360,0.96081609,3122.4,3121.9,0.41630125]
[1641681078960,0.96081609,3122.4,3121.9,1.07827125]
[1641681079161,0.96081609,3122.4,3121.9,0.41630125]
[1641681081166,0.54465402,3121.9,3121.6,2.00479]
[1641681081369,0.54465402,3121.9,3121.6,2.645577]
[1641681081566,1.05278023,3122.3,3121.6,2.645577]
[1641681082368,1.05278023,3122.3,3121.7,0.66197]
[1641681086873,1.7564121,3121.9,3121.7,0.66197]
[1641681087875,1.7564121,3121.9,3121.6,2.00479]
[1641681089177,1.7564121,3121.9,3121.3,2.00479]
[1641681089178,4.40244755,3121.5,3121.3,2.00479]
[1641681089377,0.64073,3122.1,3121.4,0.66197]
[1641681089580,0.64073,3122.1,3121.5,1.60117334]
[1641681089778,0.64073,3122.1,3121.4,0.66197]
[1641681090580,2.64552,3122.1,3121.4,0.66197]
[1641681091384,2.64552,3122.1,3121.3,2.00479]
[1641681091783,2.64552,3122.1,3121.4,0.66197]
[1641681093183,2.00479,3122.1,3121.4,0.66197]
[1641681093984,9e-05,3122.1,3121.4,0.66197]
[1641681094990,9e-05,3122.1,3121.5,0.51118918]
[1641681095191,9e-05,3122.1,3121.6,0.66197]
[1641681096393,0.64082,3122.1,3121.7,0.51118918]
[1641681096690,9e-05,3122.1,3121.8,0.66197]
[1641681096890,9e-05,3122.1,3121.8,1.302757]
[1641681097291,9e-05,3122.1,3121.8,0.66197]
[1641681097894,2.85844442,3122.6,3121.8,0.66197]
[1641681098293,0.64073,3122.5,3121.8,0.66197]
[1641681099195,0.64073,3122.5,3121.9,0.640787]
[1641681099394,0.64073,3122.5,3121.8,0.66197]
[1641681100296,0.96091763,3122.1,3121.8,0.66197]
[1641681102396,0.96100993,3121.8,3121.7,0.66197]
[1641681103196,0.96100993,3121.8,3121.3,2.00479]
[1641681103397,1.60173993,3121.8,3121.4,0.640787]
[1641681104399,1.60173993,3121.8,3121.3,2.00479]
[1641681104598,1.60173993,3121.8,3121.3,2.66676]
[1641681104798,1.60173993,3121.8,3121.5,0.51122823]
[1641681105399,0.96100993,3121.8,3121.5,1.15201523]
[1641681105800,0.96100993,3121.8,3121.5,0.51122823]
[1641681105999,0.96100993,3121.8,3121.4,1.17319823]
[1641681106501,0.96100993,3121.8,3121.4,0.51122823]
[1641681106699,2.00479,3121.6,3121.4,0.51122823]
[1641681106900,2.00479,3121.6,3121.5,0.51122823]
[1641681107300,0.96112874,3121.4,3121.2,0.81840085]
[1641681108102,0.96112874,3121.4,3121.0,1.51672409]
[1641681108503,0.96112874,3121.4,3120.9,0.68161411]
[1641681108702,2.00479,3121.0,3120.9,0.68161411]
[1641681109104,2.00479,3121.6,3121.0,0.66197]
[1641681109303,2.64552,3121.6,3121.0,0.66197]
[1641681109504,2.64552,3121.6,3120.9,0.640787]
[1641681109701,2.64552,3121.6,3120.7,1.51672409]
[1641681110503,0.96107856,3121.5,3120.7,1.51672409]
[1641681110702,2.00479,3120.8,3120.7,1.51672409]
[1641681111104,2.00479,3120.8,3120.6,1.89711826]
[1641681111305,0.64073,3120.7,3120.6,1.89711826]
[1641681112106,2.00479,3120.8,3120.6,1.89711826]
[1641681112504,1.15332747,3121.5,3120.6,1.89711826]
[1641681112704,2.00479,3121.1,3120.6,1.89711826]
[1641681113507,1.60197604,3121.0,3120.5,1.89711826]
[1641681113709,4.54713467,3121.0,3120.5,1.89711826]
[1641681114309,1.5,3120.9,3120.3,5.91108759]
[1641681114507,4.62724467,3121.0,3120.3,3.32868121]
[1641681114706,2.00479,3120.5,3120.3,0.68161411]
[1641681115709,5.127547,3120.4,3120.3,0.68161411]
[1641681115909,2.00479,3120.5,3119.8,4.6518571]
[1641681116310,2.00479,3120.5,3119.8,2.6470671]
[1641681116510,5.127958,3120.4,3119.8,2.6470671]
[1641681116710,2.00479,3120.1,3119.8,2.6470671]
[1641681117111,0.08011,3120.0,3119.5,7.77243732]
[1641681117410,2.00479,3120.1,3119.5,5.76764732]
[1641681117612,1.5,3120.0,3119.2,3.30883388]
[1641681117812,0.08013,3119.9,3119.2,3.30883388]
[1641681118212,5.128944,3119.8,3119.2,3.30883388]
[1641681118413,5.128944,3119.8,3119.0,3.63971727]
[1641681118414,1.15403629,3119.5,3119.0,3.63971727]
[1641681118617,1.15403629,3119.5,3119.0,2.54937667]
[1641681118814,4.00958,3119.1,3119.0,2.54937667]
[1641681119215,9.139347,3119.1,3119.0,2.54937667]
[1641681119418,9.139347,3119.1,3119.0,1.5874812]
[1641681119615,9.139347,3119.1,3118.7,3.86875306]
[1641681119815,9.139347,3119.1,3118.5,3.63971727]
[1641681120217,0.93020255,3119.0,3117.8,0.4704]
[1641681120616,5.130836,3118.9,3117.6,1.60319356]
[1641681120916,4.00958,3117.7,3117.6,1.60319356]
[1641681121116,4.00958,3117.7,3117.5,3.63971727]
[1641681121315,4.00958,3117.7,3117.3,1.60334008]
[1641681121515,4.00958,3117.7,3117.1,5.24316018]
[1641681121715,4.00958,3117.7,3117.2,0.66197]
[1641681121918,4.00958,3117.7,3117.4,1.60325011]
[1641681122118,4.00958,3117.7,3117.6,1.60316786]
[1641681122518,1.09825641,3117.7,3117.2,1.91702164]
[1641681122718,2.00479,3117.3,3117.2,1.91702164]
[1641681123118,1.5,3118.6,3117.2,1.91702164]
[1641681123321,4.0,3118.3,3117.2,1.91702164]
[1641681123518,1.58017,3118.2,3117.2,1.91702164]
[1641681123721,1.15457715,3118.1,3117.2,1.91702164]
[1641681123922,0.08017,3118.0,3117.0,1.91702164]
[1641681124121,1.49810972,3117.9,3117.0,1.91702164]
[1641681124522,5.132399,3117.8,3117.0,1.91702164]
[1641681124720,4.00958,3117.1,3117.0,1.91702164]
[1641681125319,4.00958,3117.1,3116.3,5.55673891]
[1641681125519,4.00958,3117.1,3116.4,1.302757]
[1641681126019,4.00958,3117.1,3116.5,1.60371292]
[1641681126221,1.48679355,3117.0,3116.5,1.60371292]
[1641681126418,1.48679355,3117.0,3116.3,1.91702164]
[1641681126620,1.48679355,3117.0,3116.1,4.63557376]
[1641681126819,2.00479,3116.7,3116.1,4.63557376]
[1641681127421,2.00479,3116.7,3116.1,3.13557376]
[1641681127819,2.00479,3116.7,3116.1,2.17240862]
[1641681128020,2.00479,3116.7,3116.2,0.51191251]
[1641681128219,5.134129,3116.6,3116.2,0.51191251]
[1641681128420,6.04181985,3116.6,3116.2,0.51191251]
[1641681128820,2.00479,3116.3,3116.0,1.53162162]
[1641681129320,2.00479,3116.3,3115.4,2.00479]
[1641681129321,1.52140853,3116.3,3115.4,3.53641162]
[1641681129725,6.09776646,3116.2,3115.4,3.53641162]
[1641681130322,6.09776646,3116.2,3115.4,2.00479]
[1641681130521,0.96277226,3116.1,3115.4,2.00479]
[1641681130722,2.00479,3116.0,3115.4,2.00479]
[1641681130923,7.13999,3116.0,3115.4,2.00479]
[1641681131122,7.13999,3116.0,3115.4,2.66676]
[1641681131326,7.13999,3116.0,3115.4,2.00479]
[1641681131523,0.96292132,3115.6,3115.5,0.51202526]
[1641681131725,7.13999,3116.0,3115.5,0.51202526]
[1641681131726,4.46184282,3116.0,3115.5,0.51202526]
[1641681131925,0.08022,3116.4,3115.5,0.51202526]
[1641681132126,1.5,3116.5,3115.5,0.51202526]
[1641681132328,0.08022,3116.4,3115.4,2.00479]
[1641681132526,1.15531193,3116.1,3115.4,2.00479]
[1641681132829,1.15531193,3116.1,3114.8,1.53162162]
[1641681132830,2.00479,3115.9,3114.8,1.53162162]
[1641681133027,3.50479,3115.9,3114.5,2.00479]
[1641681133326,5.135859,3115.8,3114.5,2.00479]
[1641681133727,3.10522662,3115.4,3114.5,2.00479]
[1641681134325,1.60522662,3115.4,3114.5,2.00479]
[1641681134528,1.44707894,3115.3,3114.5,2.00479]
[1641681135230,4.0,3115.2,3114.5,2.00479]
[1641681135427,1.44707894,3115.3,3114.5,2.00479]
[1641681136626,5.136601,3115.2,3114.5,2.00479]
[1641681137032,0.96305926,3115.1,3114.5,2.00479]
[1641681137427,5.136766,3115.0,3114.5,2.00479]
[1641681137634,1.5,3115.2,3114.5,1.04153892]
[1641681137827,2.00479,3115.4,3114.6,1.302757]
[1641681138029,2.00479,3115.4,3114.5,1.04153892]
[1641681138427,1.5,3115.2,3114.5,1.04153892]
[1641681138627,1.23655969,3115.3,3114.5,1.04153892]
[1641681138828,1.60537351,3115.1,3114.5,1.04153892]
[1641681139930,5.136766,3115.0,3113.3,1.60537351]
[1641681140131,0.08026,3114.9,3113.3,1.60537351]
[1641681140330,5.217046,3115.0,3113.3,1.60537351]
[1641681140530,5.137921,3114.8,3113.3,1.60537351]
[1641681140734,2.00479,3114.7,3113.9,2.00479]
[1641681140932,2.00479,3114.7,3113.6,2.00479]
[1641681142231,2.00479,3114.7,3112.9,69.3119]
[1641681142431,1.5,3114.3,3112.0,1.27523399]
[1641681142634,0.08028,3114.5,3112.8,1.60562354]
[1641681142839,2.00479,3113.7,3113.0,2.00479]
[1641681143032,2.00479,3113.7,3113.1,1.302757]
[1641681144633,1.32747501,3114.3,3113.1,1.302757]
[1641681144834,2.00479,3114.1,3113.1,1.302757]
[1641681146940,1.14570231,3114.3,3113.1,1.302757]
[1641681147236,4.0,3114.1,3113.1,1.302757]
[1641681147636,0.08028,3114.2,3113.1,0.640787]
[1641681147840,0.96342808,3113.9,3113.1,0.640787]
[1641681148038,1.05285516,3113.8,3113.1,0.640787]
[1641681148840,1.05285516,3113.8,3113.6,2.00479]
[1641681149540,1.05285516,3113.8,3113.6,1.04118557]
[1641681151539,1.05285516,3113.8,3113.0,2.00479]
[1641681151941,1.05285516,3113.8,3113.1,0.640787]
[1641681152441,1.05285516,3113.8,3113.0,2.00479]
[1641681152943,2.00479,3113.7,3113.0,2.00479]
[1641681153145,0.08028,3113.6,3112.6,2.00479]
[1641681153341,1.68643736,3113.6,3112.6,2.00479]
[1641681154943,2.00479,3113.3,3112.6,2.00479]
[1641681156045,5.139819,3113.2,3112.6,2.00479]
[1641681157444,5.139819,3113.2,3112.3,2.00479]
[1641681158046,2.22361517,3113.2,3112.3,2.00479]
[1641681158244,2.00479,3113.3,3112.3,2.00479]
[1641681158846,4.00958,3113.3,3112.3,2.00479]
[1641681159946,1.15644802,3113.0,3111.9,1.03979]
[1641681160146,0.96386465,3112.5,3110.6,0.4823]
[1641681160346,0.96386465,3112.5,3110.7,34.8322]
[1641681160549,0.96386465,3112.5,3110.8,1.5]
[1641681160749,0.96386465,3112.5,3111.1,1.60652377]
[1641681160947,2.00479,3112.2,3111.4,2.00479]
[1641681161147,2.00479,3112.2,3111.5,1.302757]
[1641681161348,2.00479,3112.2,3111.1,2.00479]
[1641681161549,0.96408131,3111.8,3111.1,2.00479]
[1641681161949,0.96416067,3111.6,3111.1,2.00479]
[1641681162349,2.00479,3112.2,3111.1,2.00479]
[1641681162551,1.10661171,3112.1,3111.1,2.00479]
[1641681162954,2.00479,3111.8,3111.1,2.00479]
[1641681163154,0.78090205,3111.9,3111.1,2.00479]
[1641681163352,5.142296,3111.7,3111.1,2.00479]
[1641681163552,5.142214,3111.8,3111.1,2.00479]
[1641681163954,5.142379,3111.6,3111.1,2.00479]
[1641681164254,5.142296,3111.7,3111.1,2.00479]
[1641681164455,5.142379,3111.5,3111.1,2.00479]
[1641681164653,1.03707176,3111.6,3111.1,2.00479]
[1641681166260,1.03707176,3111.6,3110.8,2.00479]
[1641681166261,4.0,3111.3,3110.8,2.00479]
[1641681166459,1.60733717,3111.3,3109.5,3.10733717]
[1641681166662,1.15696864,3111.6,3109.5,1.5]
[1641681166859,2.00479,3111.0,3110.3,2.00479]
[1641681167058,2.00479,3111.0,3110.4,0.640787]
[1641681167759,1.08016923,3110.9,3110.3,2.00479]
[1641681169161,1.08016923,3110.9,3110.3,2.645577]
[1641681169362,1.03149728,3111.0,3110.3,2.645577]
[1641681169561,1.03149728,3111.0,3110.3,0.640787]
[1641681170666,0.96444021,3110.7,3110.0,2.00479]
[1641681171464,0.96444021,3110.7,3110.1,0.640787]
[1641681171865,0.96444021,3110.7,3110.0,2.00479]
[1641681172667,0.98163269,3110.9,3110.0,2.00479]
[1641681173467,1.03149728,3111.0,3110.0,2.00479]
[1641681174269,2.63897398,3111.0,3110.0,2.00479]
[1641681175268,1.03149728,3111.0,3110.0,2.00479]
[1641681177869,1.15728132,3110.8,3110.0,2.00479]
[1641681178168,0.96450637,3110.4,3110.0,2.00479]
[1641681178371,0.96448321,3110.5,3110.0,2.00479]
[1641681178769,0.00017182,3111.0,3110.0,1.04013007]
[1641681178967,0.08036,3110.9,3110.0,1.04013007]
[1641681179168,0.00017182,3111.0,3110.0,1.04013007]
[1641681179568,4.0,3110.7,3110.0,1.04013007]
[1641681179768,0.08036,3110.6,3110.0,1.04013007]
[1641681179968,0.08036,3110.8,3110.0,1.04013007]
[1641681180368,1.60758523,3110.8,3110.0,1.04013007]
[1641681181872,2.53449565,3110.8,3110.0,1.04013007]
[1641681182071,0.92691042,3110.8,3110.0,1.04013007]
[1641681184273,0.96456484,3110.3,3110.0,1.04013007]
[1641681184875,2.46834254,3110.3,3110.0,1.04013007]